[Event "*** SCC Grand Prix: Titled Tuesday Blitz"]
[Site "Chess.com"]
[Date "2020.07.07"]
[Round "6"]
[White "dalmatinac101"]
[Black "SahajGrover"]
[Result "1/2-1/2"]
[WhiteElo "2806"]
[BlackElo "2669"]
[TimeControl "180+1"]
[EndTime "11:08:20 PDT"]
[Termination "Game drawn - insufficient material"]

1. e4 {[%clk 0:03:00.9]} 1... e6 {[%clk 0:02:57.1]} 2. d4 {[%clk 0:03:01]} 2...
d5 {[%clk 0:02:57.5]} 3. Nc3 {[%clk 0:03:01.9]} 3... Bb4 {[%clk 0:02:53.4]} 4.
e5 {[%clk 0:03:02]} 4... c5 {[%clk 0:02:51.4]} 5. a3 {[%clk 0:03:02.4]} 5...
Bxc3+ {[%clk 0:02:51.8]} 6. bxc3 {[%clk 0:03:03.3]} 6... Ne7 {[%clk 0:02:51.9]}
7. Qg4 {[%clk 0:03:03.1]} 7... cxd4 {[%clk 0:02:52.1]} 8. Qxg7 {[%clk
0:03:03.1]} 8... Rg8 {[%clk 0:02:52]} 9. Qxh7 {[%clk 0:03:03.7]} 9... Qc7 {[%clk
0:02:52.4]} 10. Ne2 {[%clk 0:03:04.2]} 10... Nbc6 {[%clk 0:02:48.7]} 11. f4
{[%clk 0:03:04.6]} 11... dxc3 {[%clk 0:02:48.7]} 12. Qd3 {[%clk 0:03:05.3]}
12... d4 {[%clk 0:02:48.9]} 13. Nxd4 {[%clk 0:03:04.5]} 13... Nxd4 {[%clk
0:02:47]} 14. Qxd4 {[%clk 0:03:05.4]} 14... Bd7 {[%clk 0:02:46.9]} 15. Qf2
{[%clk 0:03:03.7]} 15... Qc6 {[%clk 0:02:31.7]} 16. Rb1 {[%clk 0:02:48.3]} 16...
Nf5 {[%clk 0:02:20.4]} 17. Rg1 {[%clk 0:02:43.8]} 17... Qd5 {[%clk 0:02:19]} 18.
Bd3 {[%clk 0:02:31.9]} 18... Bc6 {[%clk 0:02:15.2]} 19. g4 {[%clk 0:02:21.9]}
19... Nd4 {[%clk 0:02:07.3]} 20. Rg3 {[%clk 0:02:21.9]} 20... Qh1+ {[%clk
0:01:58.6]} 21. Bf1 {[%clk 0:01:55.4]} 21... O-O-O {[%clk 0:01:48.3]} 22. Be3
{[%clk 0:01:37.5]} 22... Nf3+ {[%clk 0:01:19.6]} 23. Rxf3 {[%clk 0:01:35.4]}
23... Bxf3 {[%clk 0:01:16.4]} 24. h3 {[%clk 0:01:21]} 24... Rd5 {[%clk
0:01:02.5]} 25. Qg1 {[%clk 0:01:00.2]} 25... Qxg1 {[%clk 0:00:59.2]} 26. Bxg1
{[%clk 0:01:01.1]} 26... Rd2 {[%clk 0:00:52.1]} 27. Bd3 {[%clk 0:00:55.7]} 27...
Rh8 {[%clk 0:00:38.6]} 28. Rb3 {[%clk 0:00:49.1]} 28... Rd1+ {[%clk 0:00:28.6]}
29. Kf2 {[%clk 0:00:49.4]} 29... Rxh3 {[%clk 0:00:25.9]} 30. Bf1 {[%clk
0:00:42]} 30... Rd2+ {[%clk 0:00:22.8]} 31. Ke1 {[%clk 0:00:40.5]} 31... Rd1+
{[%clk 0:00:19.6]} 32. Kf2 {[%clk 0:00:40.8]} 32... Rd2+ {[%clk 0:00:17.9]} 33.
Ke1 {[%clk 0:00:41]} 33... Bg2 {[%clk 0:00:15.8]} 34. Rxc3+ {[%clk 0:00:23.3]}
34... Rxc3 {[%clk 0:00:16.7]} 35. Kxd2 {[%clk 0:00:23.7]} 35... Rg3 {[%clk
0:00:16.3]} 36. Be2 {[%clk 0:00:24.2]} 36... Bf3 {[%clk 0:00:13.4]} 37. Bf2
{[%clk 0:00:11.9]} 37... Rg2 {[%clk 0:00:13.4]} 38. Bxf3 {[%clk 0:00:12.4]}
38... Rxf2+ {[%clk 0:00:13.5]} 39. Ke3 {[%clk 0:00:13.3]} 39... Rxc2 {[%clk
0:00:13.7]} 40. g5 {[%clk 0:00:13.3]} 40... Rc3+ {[%clk 0:00:14.1]} 41. Ke4
{[%clk 0:00:13.5]} 41... Rxa3 {[%clk 0:00:15]} 42. Bh5 {[%clk 0:00:13.7]} 42...
Kd7 {[%clk 0:00:11.8]} 43. Bxf7 {[%clk 0:00:13.7]} 43... Ke7 {[%clk 0:00:12.4]}
44. g6 {[%clk 0:00:13.2]} 44... b5 {[%clk 0:00:10.7]} 45. Bxe6 {[%clk
0:00:06.3]} 45... Kxe6 {[%clk 0:00:11]} 46. f5+ {[%clk 0:00:06.8]} 46... Ke7
{[%clk 0:00:11.4]} 47. Kf4 {[%clk 0:00:05.2]} 47... Ra1 {[%clk 0:00:07.4]} 48.
Kg5 {[%clk 0:00:04.4]} 48... Rg1+ {[%clk 0:00:07.9]} 49. Kh6 {[%clk 0:00:04.6]}
49... b4 {[%clk 0:00:08.4]} 50. Kg7 {[%clk 0:00:04.7]} 50... b3 {[%clk 0:00:08]}
51. f6+ {[%clk 0:00:05.2]} 51... Kd7 {[%clk 0:00:08]} 52. f7 {[%clk 0:00:06.1]}
52... Rf1 {[%clk 0:00:06]} 53. f8=Q {[%clk 0:00:02.1]} 53... Rxf8 {[%clk
0:00:06.3]} 54. Kxf8 {[%clk 0:00:03]} 54... b2 {[%clk 0:00:06.9]} 55. e6+ {[%clk
0:00:03.9]} 55... Kd6 {[%clk 0:00:05.8]} 56. e7 {[%clk 0:00:03.5]} 56... b1=Q
{[%clk 0:00:05.9]} 57. e8=Q {[%clk 0:00:03.6]} 57... Qf5+ {[%clk 0:00:05.7]} 58.
Qf7 {[%clk 0:00:03.6]} 58... Qc8+ {[%clk 0:00:05.8]} 59. Kg7 {[%clk 0:00:04]}
59... a5 {[%clk 0:00:06.1]} 60. Kh7 {[%clk 0:00:03.7]} 60... a4 {[%clk
0:00:06.1]} 61. g7 {[%clk 0:00:04]} 61... Qh3+ {[%clk 0:00:06.6]} 62. Kg8 {[%clk
0:00:03.8]} 62... a3 {[%clk 0:00:06.8]} 63. Qf8+ {[%clk 0:00:02.4]} 63... Kd5
{[%clk 0:00:06.5]} 64. Qf7+ {[%clk 0:00:02]} 64... Kd6 {[%clk 0:00:06.6]} 65.
Qf6+ {[%clk 0:00:02.4]} 65... Kd5 {[%clk 0:00:06.6]} 66. Qd8+ {[%clk 0:00:02.7]}
66... Kc4 {[%clk 0:00:06.4]} 67. Qc7+ {[%clk 0:00:02.4]} 67... Kb3 {[%clk
0:00:06.6]} 68. Kf8 {[%clk 0:00:02.9]} 68... Qf3+ {[%clk 0:00:06.3]} 69. Qf7+
{[%clk 0:00:03.3]} 69... Qxf7+ {[%clk 0:00:06.1]} 70. Kxf7 {[%clk 0:00:04.2]}
70... a2 {[%clk 0:00:07]} 71. g8=Q {[%clk 0:00:04.4]} 71... a1=Q {[%clk
0:00:07.9]} 72. Kf8+ {[%clk 0:00:05.1]} 72... Kc2 {[%clk 0:00:08]} 73. Qf7
{[%clk 0:00:05]} 73... Qa3+ {[%clk 0:00:07.6]} 74. Qe7 {[%clk 0:00:05.1]} 74...
Qxe7+ {[%clk 0:00:07.4]} 75. Kxe7 {[%clk 0:00:06]} 1/2-1/2

[Event "*** SCC Grand Prix: Titled Tuesday Blitz"]
[Site "Chess.com"]
[Date "2020.07.07"]
[Round "6"]
[White "AlexOstrovskiy"]
[Black "djano"]
[Result "0-1"]
[WhiteElo "2639"]
[BlackElo "2465"]
[TimeControl "180+1"]
[EndTime "11:08:38 PDT"]
[Termination "djano won on time"]

1. d4 {[%clk 0:03:00.9]} 1... d5 {[%clk 0:03:00.1]} 2. Bf4 {[%clk 0:02:58.6]}
2... h5 {[%clk 0:02:59.1]} 3. Nf3 {[%clk 0:02:57.2]} 3... g6 {[%clk 0:02:58.6]}
4. c4 {[%clk 0:02:50.9]} 4... c6 {[%clk 0:02:55.8]} 5. Nc3 {[%clk 0:02:50.1]}
5... Bg7 {[%clk 0:02:54.9]} 6. cxd5 {[%clk 0:02:47]} 6... cxd5 {[%clk
0:02:55.8]} 7. Qb3 {[%clk 0:02:43.9]} 7... Nf6 {[%clk 0:02:51.8]} 8. e3 {[%clk
0:02:38.6]} 8... O-O {[%clk 0:02:48.3]} 9. Be2 {[%clk 0:02:37.3]} 9... Nc6
{[%clk 0:02:46.8]} 10. O-O {[%clk 0:02:36.6]} 10... Na5 {[%clk 0:02:32.4]} 11.
Qd1 {[%clk 0:02:23]} 11... Bf5 {[%clk 0:02:18.6]} 12. Ne5 {[%clk 0:02:22.4]}
12... Rc8 {[%clk 0:02:08.1]} 13. Rc1 {[%clk 0:02:22]} 13... a6 {[%clk
0:02:00.6]} 14. h3 {[%clk 0:02:09.6]} 14... b5 {[%clk 0:01:57.5]} 15. Bf3 {[%clk
0:02:06.4]} 15... Ne4 {[%clk 0:01:36.4]} 16. g4 {[%clk 0:01:41.1]} 16... hxg4
{[%clk 0:01:34.4]} 17. hxg4 {[%clk 0:01:41.3]} 17... Nxc3 {[%clk 0:01:30.4]} 18.
bxc3 {[%clk 0:01:39.1]} 18... Be4 {[%clk 0:01:24.2]} 19. Be2 {[%clk 0:01:12.1]}
19... f6 {[%clk 0:01:16.2]} 20. Nd3 {[%clk 0:01:10.7]} 20... g5 {[%clk
0:01:15.2]} 21. Bg3 {[%clk 0:01:09.3]} 21... Nc4 {[%clk 0:01:13.3]} 22. Nc5
{[%clk 0:01:06.4]} 22... Rxc5 {[%clk 0:00:48.7]} 23. dxc5 {[%clk 0:01:06]} 23...
e5 {[%clk 0:00:48.8]} 24. a4 {[%clk 0:00:55.2]} 24... Nb2 {[%clk 0:00:39]} 25.
Qb3 {[%clk 0:00:52]} 25... Nxa4 {[%clk 0:00:39.2]} 26. f3 {[%clk 0:00:49.4]}
26... Bg6 {[%clk 0:00:35.8]} 27. Rfd1 {[%clk 0:00:48.4]} 27... Bf7 {[%clk
0:00:36.1]} 28. Qb4 {[%clk 0:00:44.6]} 28... Qe7 {[%clk 0:00:32.5]} 29. c6
{[%clk 0:00:38.9]} 29... Qc7 {[%clk 0:00:32.6]} 30. e4 {[%clk 0:00:19.3]} 30...
dxe4 {[%clk 0:00:31.2]} 31. c4 {[%clk 0:00:19.5]} 31... exf3 {[%clk 0:00:28.3]}
32. Bxf3 {[%clk 0:00:19.4]} 32... Qb6+ {[%clk 0:00:17]} 33. Bf2 {[%clk 0:00:19]}
33... Qc7 {[%clk 0:00:17]} 34. cxb5 {[%clk 0:00:18.1]} 34... axb5 {[%clk
0:00:17.1]} 35. Qxb5 {[%clk 0:00:17.3]} 35... e4 {[%clk 0:00:16.9]} 36. Bxe4
{[%clk 0:00:16.5]} 36... f5 {[%clk 0:00:14.2]} 37. Bxf5 {[%clk 0:00:13.2]} 37...
Nc3 {[%clk 0:00:12.8]} 38. Rxc3 {[%clk 0:00:12.1]} 38... Bxc3 {[%clk 0:00:13.7]}
39. Rd7 {[%clk 0:00:12.3]} 39... Qf4 {[%clk 0:00:11.7]} 40. Qd3 {[%clk
0:00:07.4]} 40... Be5 {[%clk 0:00:11.4]} 41. c7 {[%clk 0:00:04.2]} 41... Qh2+
{[%clk 0:00:10.7]} 42. Kf1 {[%clk 0:00:04.2]} 42... Qh1+ {[%clk 0:00:09.6]} 43.
Ke2 {[%clk 0:00:04.6]} 43... Qc6 {[%clk 0:00:09.1]} 44. Rxf7 {[%clk 0:00:03.9]}
44... Kxf7 {[%clk 0:00:08.7]} 45. Qd7+ {[%clk 0:00:02.6]} 45... Qxd7 {[%clk
0:00:07.9]} 46. Bxd7 {[%clk 0:00:03.5]} 46... Bxc7 {[%clk 0:00:08.6]} 47. Bf5
{[%clk 0:00:03.3]} 47... Kg7 {[%clk 0:00:08.6]} 48. Kf3 {[%clk 0:00:04.2]} 48...
Kf7 {[%clk 0:00:08.9]} 49. Bd4 {[%clk 0:00:04.2]} 49... Bf4 {[%clk 0:00:09]} 50.
Ke4 {[%clk 0:00:05.1]} 50... Re8+ {[%clk 0:00:09.1]} 51. Kf3 {[%clk 0:00:05.6]}
51... Rd8 {[%clk 0:00:09.4]} 52. Be3 {[%clk 0:00:05.5]} 52... Bxe3 {[%clk
0:00:08.8]} 53. Kxe3 {[%clk 0:00:06.4]} 53... Kf6 {[%clk 0:00:09.5]} 54. Ke4
{[%clk 0:00:06.8]} 54... Rb8 {[%clk 0:00:10]} 55. Kd5 {[%clk 0:00:06.8]} 55...
Rb4 {[%clk 0:00:10.4]} 56. Bd7 {[%clk 0:00:06.6]} 56... Rf4 {[%clk 0:00:10.6]}
57. Bc8 {[%clk 0:00:06.6]} 57... Rf1 {[%clk 0:00:10.4]} 58. Kd4 {[%clk
0:00:03.6]} 58... Re1 {[%clk 0:00:11.3]} 59. Kd3 {[%clk 0:00:03.6]} 59... Re7
{[%clk 0:00:11.9]} 60. Kd4 {[%clk 0:00:03.5]} 60... Re8 {[%clk 0:00:11.7]} 61.
Bf5 {[%clk 0:00:03.6]} 61... Rd8+ {[%clk 0:00:11.8]} 62. Ke4 {[%clk 0:00:03.8]}
62... Rb8 {[%clk 0:00:12.5]} 63. Kd4 {[%clk 0:00:03.6]} 63... Rb4+ {[%clk
0:00:13]} 64. Kd5 {[%clk 0:00:03.1]} 64... Rf4 {[%clk 0:00:13.3]} 65. Bc8 {[%clk
0:00:02.8]} 65... Rf1 {[%clk 0:00:13.7]} 66. Kd4 {[%clk 0:00:02.1]} 66... Rd1+
{[%clk 0:00:13.5]} 67. Ke4 {[%clk 0:00:02.5]} 67... Rc1 {[%clk 0:00:12.9]} 68.
Bf5 {[%clk 0:00:02.7]} 68... Rc4+ {[%clk 0:00:12.9]} 69. Kd5 {[%clk 0:00:03.6]}
69... Rb4 {[%clk 0:00:12.6]} 70. Bc8 {[%clk 0:00:03]} 70... Ra4 {[%clk
0:00:12.7]} 71. Bf5 {[%clk 0:00:02.8]} 71... Ra5+ {[%clk 0:00:12.9]} 72. Ke4
{[%clk 0:00:02.9]} 72... Kf7 {[%clk 0:00:12.6]} 73. Kd4 {[%clk 0:00:03]} 73...
Ke7 {[%clk 0:00:12.9]} 74. Ke4 {[%clk 0:00:03.5]} 74... Kd6 {[%clk 0:00:13.2]}
75. Kd4 {[%clk 0:00:03.8]} 75... Ra4+ {[%clk 0:00:13.5]} 76. Ke3 {[%clk
0:00:04.1]} 76... Ke5 {[%clk 0:00:14.2]} 77. Kf3 {[%clk 0:00:04.6]} 77... Ra3+
{[%clk 0:00:14.5]} 78. Ke2 {[%clk 0:00:04.6]} 78... Kf4 {[%clk 0:00:15.4]} 79.
Kf2 {[%clk 0:00:04.6]} 79... Rf3+ {[%clk 0:00:15.5]} 80. Ke2 {[%clk 0:00:04.6]}
80... Rg3 {[%clk 0:00:15.4]} 81. Kf2 {[%clk 0:00:04.2]} 81... Ra3 {[%clk
0:00:16.3]} 82. Ke2 {[%clk 0:00:04.4]} 82... Ra2+ {[%clk 0:00:15.9]} 83. Kd3
{[%clk 0:00:04.6]} 83... Rg2 {[%clk 0:00:14.8]} 84. Bd7 {[%clk 0:00:03.6]} 84...
Rxg4 {[%clk 0:00:15]} 85. Ke2 {[%clk 0:00:03.9]} 85... Rg2+ {[%clk 0:00:14.4]}
86. Kf1 {[%clk 0:00:03.6]} 86... Rb2 {[%clk 0:00:15.3]} 87. Kg1 {[%clk
0:00:02.9]} 87... g4 {[%clk 0:00:16.2]} 88. Bc6 {[%clk 0:00:02.5]} 88... Kg3
{[%clk 0:00:16.3]} 89. Kf1 {[%clk 0:00:02]} 89... Rb1+ {[%clk 0:00:16.3]} 90.
Ke2 {[%clk 0:00:02.4]} 90... Kh2 {[%clk 0:00:16.8]} 0-1

[Event "*** SCC Grand Prix: Titled Tuesday Blitz"]
[Site "Chess.com"]
[Date "2020.07.07"]
[Round "6"]
[White "GregShahade"]
[Black "Brave_spirit12"]
[Result "1/2-1/2"]
[WhiteElo "2670"]
[BlackElo "2479"]
[TimeControl "180+1"]
[EndTime "11:08:42 PDT"]
[Termination "Game drawn by repetition"]

1. e4 {[%clk 0:03:00.9]} 1... e6 {[%clk 0:02:58.3]} 2. d4 {[%clk 0:03:00.6]}
2... d5 {[%clk 0:02:58.4]} 3. Nd2 {[%clk 0:03:01.1]} 3... c5 {[%clk 0:02:58.1]}
4. exd5 {[%clk 0:03:01.1]} 4... exd5 {[%clk 0:02:59]} 5. Ngf3 {[%clk 0:03:00.7]}
5... Nc6 {[%clk 0:02:59.4]} 6. Bb5 {[%clk 0:03:00]} 6... Bd6 {[%clk 0:02:59.7]}
7. dxc5 {[%clk 0:02:59.9]} 7... Bxc5 {[%clk 0:03:00.6]} 8. O-O {[%clk
0:03:00.3]} 8... Ne7 {[%clk 0:03:00.6]} 9. Nb3 {[%clk 0:03:00.9]} 9... Bd6
{[%clk 0:03:00.7]} 10. Re1 {[%clk 0:03:00.3]} 10... O-O {[%clk 0:03:00.5]} 11.
Bg5 {[%clk 0:03:00.9]} 11... f6 {[%clk 0:02:59.7]} 12. Bh4 {[%clk 0:03:00.8]}
12... Bg4 {[%clk 0:03:00.1]} 13. Bg3 {[%clk 0:02:57.2]} 13... Ne5 {[%clk
0:02:57.6]} 14. Be2 {[%clk 0:02:54.4]} 14... Bxf3 {[%clk 0:02:17.3]} 15. Bxf3
{[%clk 0:02:53.2]} 15... Nxf3+ {[%clk 0:02:18.2]} 16. Qxf3 {[%clk 0:02:52.8]}
16... Bxg3 {[%clk 0:02:18.8]} 17. hxg3 {[%clk 0:02:51.9]} 17... Qc7 {[%clk
0:01:55.3]} 18. Rad1 {[%clk 0:02:39]} 18... Rad8 {[%clk 0:01:52.8]} 19. Nd4
{[%clk 0:02:38.2]} 19... Ng6 {[%clk 0:01:22.2]} 20. Ne6 {[%clk 0:02:36.4]} 20...
Qxc2 {[%clk 0:01:21.2]} 21. Nxd8 {[%clk 0:02:31.1]} 21... Rxd8 {[%clk
0:01:19.7]} 22. Rxd5 {[%clk 0:02:31.4]} 22... Rf8 {[%clk 0:01:17.7]} 23. Qb3
{[%clk 0:02:15.1]} 23... Qxb3 {[%clk 0:01:11.6]} 24. axb3 {[%clk 0:02:14.6]}
24... Ne5 {[%clk 0:01:03.9]} 25. f4 {[%clk 0:02:13.6]} 25... Ng4 {[%clk
0:01:00.9]} 26. Rd7 {[%clk 0:02:10.1]} 26... Rc8 {[%clk 0:01:00.3]} 27. Rxb7
{[%clk 0:02:10.3]} 27... h5 {[%clk 0:00:57.4]} 28. Rxa7 {[%clk 0:02:10.3]} 28...
Rc2 {[%clk 0:00:56.9]} 29. b4 {[%clk 0:01:58.7]} 29... Rxb2 {[%clk 0:00:56.2]}
30. Rb7 {[%clk 0:01:59.1]} 30... Rb3 {[%clk 0:00:54.5]} 31. b5 {[%clk
0:01:52.4]} 31... Rxg3 {[%clk 0:00:52.1]} 32. b6 {[%clk 0:01:44.1]} 32... Rb3
{[%clk 0:00:51.1]} 33. Rb8+ {[%clk 0:01:42.9]} 33... Kh7 {[%clk 0:00:50.7]} 34.
f5 {[%clk 0:01:35.6]} 34... Kh6 {[%clk 0:00:46]} 35. Kf1 {[%clk 0:01:27.6]}
35... Kg5 {[%clk 0:00:39.4]} 36. Re7 {[%clk 0:01:27.6]} 36... Rb1+ {[%clk
0:00:34.8]} 37. Ke2 {[%clk 0:01:27.1]} 37... Rb2+ {[%clk 0:00:35]} 38. Ke1
{[%clk 0:01:25]} 38... Ne5 {[%clk 0:00:29.8]} 39. b7 {[%clk 0:01:21.7]} 39...
Nd3+ {[%clk 0:00:15.3]} 40. Kf1 {[%clk 0:01:08.9]} 40... Nc5 {[%clk 0:00:14.6]}
41. Rc8 {[%clk 0:01:00.1]} 41... Rxb7 {[%clk 0:00:11.9]} 42. Rxb7 {[%clk
0:01:00.1]} 42... Nxb7 {[%clk 0:00:12.8]} 43. Rc7 {[%clk 0:01:00.5]} 43... Nd6
{[%clk 0:00:12.7]} 44. Rxg7+ {[%clk 0:01:01.1]} 44... Kxf5 {[%clk 0:00:13.3]}
45. Ra7 {[%clk 0:01:00.1]} 45... Ne4 {[%clk 0:00:13.1]} 46. Ra5+ {[%clk
0:01:00.3]} 46... Kg6 {[%clk 0:00:13.6]} 47. Ke2 {[%clk 0:00:59.9]} 47... Ng5
{[%clk 0:00:14]} 48. Ke3 {[%clk 0:00:58.8]} 48... h4 {[%clk 0:00:14.5]} 49. Kf2
{[%clk 0:00:55.7]} 49... Kh5 {[%clk 0:00:12.5]} 50. Rf5 {[%clk 0:00:54.9]} 50...
Kg6 {[%clk 0:00:12.3]} 51. Rc5 {[%clk 0:00:54.3]} 51... Kh5 {[%clk 0:00:12.5]}
52. Rb5 {[%clk 0:00:54]} 52... Kg6 {[%clk 0:00:12.7]} 53. Kg1 {[%clk 0:00:53.6]}
53... f5 {[%clk 0:00:12.1]} 54. Kf2 {[%clk 0:00:52.5]} 54... Kf6 {[%clk
0:00:11]} 55. Ra5 {[%clk 0:00:52]} 55... Kg6 {[%clk 0:00:10.6]} 56. Ke3 {[%clk
0:00:52.3]} 56... h3 {[%clk 0:00:08.5]} 57. g3 {[%clk 0:00:46.3]} 57... Ne4
{[%clk 0:00:08.2]} 58. Kf3 {[%clk 0:00:43.3]} 58... h2 {[%clk 0:00:05.3]} 59.
Ra1 {[%clk 0:00:42.2]} 59... Kg5 {[%clk 0:00:04.5]} 60. Rh1 {[%clk 0:00:41.2]}
60... Nd2+ {[%clk 0:00:05]} 61. Kg2 {[%clk 0:00:39.1]} 61... f4 {[%clk 0:00:05]}
62. Kxh2 {[%clk 0:00:23.1]} 62... fxg3+ {[%clk 0:00:04.8]} 63. Kxg3 {[%clk
0:00:23.9]} 63... Ne4+ {[%clk 0:00:05.7]} 64. Kf3 {[%clk 0:00:23.9]} 64... Nf6
{[%clk 0:00:06.6]} 65. Rb1 {[%clk 0:00:23.2]} 65... Kf5 {[%clk 0:00:07.5]} 66.
Rb5+ {[%clk 0:00:23.9]} 66... Ke6 {[%clk 0:00:08.2]} 67. Kf4 {[%clk 0:00:24.4]}
67... Nd5+ {[%clk 0:00:08.8]} 68. Kf3 {[%clk 0:00:24]} 68... Nf6 {[%clk
0:00:09.5]} 69. Ra5 {[%clk 0:00:24.6]} 69... Nd5 {[%clk 0:00:09.7]} 70. Ke4
{[%clk 0:00:24.4]} 70... Nf6+ {[%clk 0:00:10.2]} 71. Kd4 {[%clk 0:00:24.9]}
71... Nd7 {[%clk 0:00:10.5]} 72. Ra6+ {[%clk 0:00:23.6]} 72... Kf5 {[%clk
0:00:11]} 73. Ra5+ {[%clk 0:00:18.5]} 73... Ke6 {[%clk 0:00:10.8]} 74. Rb5
{[%clk 0:00:17]} 74... Nf6 {[%clk 0:00:10.7]} 75. Re5+ {[%clk 0:00:16.7]} 75...
Kd6 {[%clk 0:00:10.6]} 76. Re1 {[%clk 0:00:17.5]} 76... Nd7 {[%clk 0:00:10.8]}
77. Rh1 {[%clk 0:00:17]} 77... Nf6 {[%clk 0:00:11.2]} 78. Rh6 {[%clk 0:00:16]}
78... Ke6 {[%clk 0:00:12.1]} 79. Rg6 {[%clk 0:00:16.2]} 79... Kf5 {[%clk
0:00:12]} 80. Rg1 {[%clk 0:00:16.5]} 80... Ke6 {[%clk 0:00:11.7]} 81. Rf1 {[%clk
0:00:16]} 81... Nd7 {[%clk 0:00:09.4]} 82. Ke4 {[%clk 0:00:13]} 82... Nf6+
{[%clk 0:00:08.2]} 83. Kd4 {[%clk 0:00:13.6]} 83... Nd7 {[%clk 0:00:08.5]} 84.
Re1+ {[%clk 0:00:12.8]} 84... Kd6 {[%clk 0:00:08.9]} 85. Rb1 {[%clk 0:00:11.6]}
85... Ke6 {[%clk 0:00:09.2]} 86. Rb7 {[%clk 0:00:11.7]} 86... Kd6 {[%clk
0:00:08.8]} 87. Ra7 {[%clk 0:00:11.3]} 87... Ke6 {[%clk 0:00:08.5]} 88. Ra6+
{[%clk 0:00:11.3]} 88... Kf5 {[%clk 0:00:08.1]} 89. Rd6 {[%clk 0:00:11.7]} 89...
Nf6 {[%clk 0:00:08.2]} 90. Rc6 {[%clk 0:00:11.8]} 90... Ne4 {[%clk 0:00:07.2]}
91. Rc8 {[%clk 0:00:10.4]} 91... Nf6 {[%clk 0:00:07.6]} 92. Rb8 {[%clk
0:00:10.8]} 92... Ke6 {[%clk 0:00:07.7]} 93. Rb6+ {[%clk 0:00:10.7]} 93... Kf5
{[%clk 0:00:08]} 94. Ra6 {[%clk 0:00:11.6]} 94... Nd7 {[%clk 0:00:07.8]} 1/2-1/2

[Event "*** SCC Grand Prix: Titled Tuesday Blitz"]
[Site "Chess.com"]
[Date "2020.07.07"]
[Round "6"]
[White "malandragem"]
[Black "yuliagok"]
[Result "1-0"]
[WhiteElo "2386"]
[BlackElo "2116"]
[TimeControl "180+1"]
[EndTime "11:08:53 PDT"]
[Termination "malandragem won on time"]

1. a3 {[%clk 0:03:00.9]} 1... Nf6 {[%clk 0:02:57.8]} 2. Nf3 {[%clk 0:03:00]}
2... d5 {[%clk 0:02:56.2]} 3. g3 {[%clk 0:02:58.2]} 3... Bg4 {[%clk 0:02:52.4]}
4. Bg2 {[%clk 0:02:59.1]} 4... c6 {[%clk 0:02:51.6]} 5. O-O {[%clk 0:02:59.4]}
5... Nbd7 {[%clk 0:02:50.7]} 6. d3 {[%clk 0:02:59.9]} 6... e5 {[%clk 0:02:49.9]}
7. Nbd2 {[%clk 0:02:58.7]} 7... Bd6 {[%clk 0:02:48.8]} 8. h3 {[%clk 0:02:58]}
8... Bxf3 {[%clk 0:02:46.7]} 9. Bxf3 {[%clk 0:02:57.6]} 9... O-O {[%clk
0:02:46.2]} 10. e4 {[%clk 0:02:57.9]} 10... Qc7 {[%clk 0:02:35.1]} 11. Bg2
{[%clk 0:02:57.4]} 11... a5 {[%clk 0:02:31.1]} 12. Qe2 {[%clk 0:02:57.8]} 12...
a4 {[%clk 0:02:29.4]} 13. c3 {[%clk 0:02:58]} 13... Rfe8 {[%clk 0:02:25.4]} 14.
Nf3 {[%clk 0:02:58.4]} 14... dxe4 {[%clk 0:02:22.1]} 15. dxe4 {[%clk 0:02:58.1]}
15... Nc5 {[%clk 0:02:21.8]} 16. Nh4 {[%clk 0:02:58.5]} 16... Nb3 {[%clk
0:02:20.1]} 17. Rb1 {[%clk 0:02:55.7]} 17... Nxc1 {[%clk 0:02:15]} 18. Rbxc1
{[%clk 0:02:56.6]} 18... b5 {[%clk 0:02:13.8]} 19. Kh1 {[%clk 0:02:56.9]} 19...
Qb6 {[%clk 0:02:07.7]} 20. Nf5 {[%clk 0:02:52.6]} 20... Bf8 {[%clk 0:02:06.7]}
21. Rcd1 {[%clk 0:02:50.2]} 21... Red8 {[%clk 0:02:05.5]} 22. Qf3 {[%clk
0:02:44.6]} 22... c5 {[%clk 0:02:00.6]} 23. Ne3 {[%clk 0:02:41.7]} 23... b4
{[%clk 0:01:55.4]} 24. cxb4 {[%clk 0:02:40.8]} 24... cxb4 {[%clk 0:01:54.4]} 25.
Nd5 {[%clk 0:02:41.7]} 25... Nxd5 {[%clk 0:01:52.8]} 26. exd5 {[%clk 0:02:41.8]}
26... bxa3 {[%clk 0:01:49.5]} 27. bxa3 {[%clk 0:02:42.7]} 27... Qb3 {[%clk
0:01:47.7]} 28. Rd3 {[%clk 0:02:42.7]} 28... Qc4 {[%clk 0:01:43.3]} 29. Qe3
{[%clk 0:02:25.7]} 29... Bd6 {[%clk 0:01:32.4]} 30. Rc1 {[%clk 0:02:25.2]} 30...
Qa2 {[%clk 0:01:26.6]} 31. Rc6 {[%clk 0:02:18.4]} 31... Rac8 {[%clk 0:01:14.3]}
32. Be4 {[%clk 0:01:35]} 32... g6 {[%clk 0:01:10.9]} 33. g4 {[%clk 0:01:34.7]}
33... Qa1+ {[%clk 0:01:06.4]} 34. Kg2 {[%clk 0:01:34.1]} 34... Rb8 {[%clk
0:01:03.8]} 35. Rc1 {[%clk 0:01:15.4]} 35... Qb2 {[%clk 0:01:00.1]} 36. Rdc3
{[%clk 0:01:10.7]} 36... Rb3 {[%clk 0:00:58.1]} 37. Rxb3 {[%clk 0:00:49.6]}
37... Qxb3 {[%clk 0:00:57.2]} 38. Rc3 {[%clk 0:00:47.3]} 38... Qd1 {[%clk
0:00:55.6]} 39. Bf3 {[%clk 0:00:43.8]} 39... Qd4 {[%clk 0:00:54.3]} 40. Qxd4
{[%clk 0:00:34.9]} 40... exd4 {[%clk 0:00:53.6]} 41. Rc4 {[%clk 0:00:35.4]}
41... Bxa3 {[%clk 0:00:48]} 42. Rxd4 {[%clk 0:00:31.8]} 42... Bb2 {[%clk
0:00:45]} 43. Rxa4 {[%clk 0:00:31.5]} 43... Kg7 {[%clk 0:00:41.9]} 44. Ra6
{[%clk 0:00:29.3]} 44... Be5 {[%clk 0:00:40.5]} 45. Be4 {[%clk 0:00:27.4]} 45...
Rd6 {[%clk 0:00:39.6]} 46. Ra8 {[%clk 0:00:24]} 46... h5 {[%clk 0:00:38.4]} 47.
Kf3 {[%clk 0:00:23.4]} 47... hxg4+ {[%clk 0:00:37.5]} 48. hxg4 {[%clk
0:00:24.3]} 48... f5 {[%clk 0:00:32.6]} 49. gxf5 {[%clk 0:00:21.5]} 49... gxf5
{[%clk 0:00:31.6]} 50. Bxf5 {[%clk 0:00:20.3]} 50... Rxd5 {[%clk 0:00:30.9]} 51.
Ke4 {[%clk 0:00:20.4]} 51... Rb5 {[%clk 0:00:30]} 52. f4 {[%clk 0:00:18.3]}
52... Bd6 {[%clk 0:00:24.4]} 53. Be6 {[%clk 0:00:18.1]} 53... Rb4+ {[%clk
0:00:22.2]} 54. Kd5 {[%clk 0:00:18.4]} 54... Bxf4 {[%clk 0:00:21.2]} 55. Ra7+
{[%clk 0:00:17.3]} 55... Kf6 {[%clk 0:00:19.8]} 56. Rf7+ {[%clk 0:00:17.3]}
56... Kg5 {[%clk 0:00:19.8]} 57. Bd7 {[%clk 0:00:13.7]} 57... Be3 {[%clk
0:00:15.9]} 58. Rf5+ {[%clk 0:00:13.4]} 58... Kg6 {[%clk 0:00:15.1]} 59. Rf3
{[%clk 0:00:13.2]} 59... Rd4+ {[%clk 0:00:14.2]} 60. Ke6 {[%clk 0:00:13.1]}
60... Rd3 {[%clk 0:00:12.3]} 61. Be8+ {[%clk 0:00:12.3]} 61... Kg5 {[%clk
0:00:11.3]} 62. Rf5+ {[%clk 0:00:11.5]} 62... Kg4 {[%clk 0:00:10.9]} 63. Bh5+
{[%clk 0:00:11.2]} 63... Kh4 {[%clk 0:00:10.9]} 64. Be2 {[%clk 0:00:11.4]} 64...
Ra3 {[%clk 0:00:09.8]} 65. Rf7 {[%clk 0:00:10]} 65... Rb3 {[%clk 0:00:08.9]} 66.
Rg7 {[%clk 0:00:07.8]} 66... Rb6+ {[%clk 0:00:08.3]} 67. Kd5 {[%clk 0:00:07.7]}
67... Rf6 {[%clk 0:00:06.6]} 68. Ke4 {[%clk 0:00:06.9]} 68... Bg5 {[%clk
0:00:06]} 69. Bb5 {[%clk 0:00:03.3]} 69... Rf2 {[%clk 0:00:05.4]} 70. Bd7 {[%clk
0:00:02.7]} 70... Rf4+ {[%clk 0:00:04.2]} 71. Ke3 {[%clk 0:00:02.8]} 71... Rb4+
{[%clk 0:00:03.2]} 72. Ke2 {[%clk 0:00:02.8]} 72... Rb2+ {[%clk 0:00:02.9]} 73.
Kf1 {[%clk 0:00:03.7]} 73... Rb1+ {[%clk 0:00:02.8]} 74. Kg2 {[%clk 0:00:04.6]}
74... Rb2+ {[%clk 0:00:02.6]} 75. Kf3 {[%clk 0:00:05.5]} 75... Rb3+ {[%clk
0:00:02.6]} 76. Ke4 {[%clk 0:00:06.4]} 76... Rb4+ {[%clk 0:00:02.5]} 77. Kf5
{[%clk 0:00:07.3]} 1-0